[Event "Titled Tuesday Blitz November 14 Late 2023"]
[White "Nakamura, Hikaru"]
[Black "Zhigalko, Sergei"]
[WhiteFideId "2016192"]
[BlackFideId "13502956"]
[WhiteElo "3294"]
[BlackElo "2898"]
[Result "1-0"]
[Round "4"]
[TimeControl "180+1"]
[Date "2023.11.14"]
[WhiteClock "0:00:03"]
[BlackClock "0:00:11"]
[Board "1"]

1. Nf3 {[%clk 0:03:00]}  d5 {[%clk 0:03:00]} 2. g3 {[%clk 0:03:00]}  c6 {[%clk 0:02:57]} 3. Bg2 {[%clk 0:03:00]}  Bg4 {[%clk 0:02:57]} 4. h3 {[%clk 0:02:59]}  Bh5 {[%clk 0:02:58]} 5. d3 {[%clk 0:02:59]}  e6 {[%clk 0:02:57]} 6. Nbd2 {[%clk 0:02:59]}  Bd6 {[%clk 0:02:57]} 7. b3 {[%clk 0:02:58]}  Ne7 {[%clk 0:02:55]} 8. g4 {[%clk 0:02:57]}  Bg6 {[%clk 0:02:54]} 9. Nh4 {[%clk 0:02:58]}  a5 {[%clk 0:02:47]} 10. Bb2 {[%clk 0:02:56]}  O-O {[%clk 0:02:47]} 11. a3 {[%clk 0:02:56]}  c5 {[%clk 0:02:29]} 12. e3 {[%clk 0:02:51]}  a4 {[%clk 0:02:14]} 13. bxa4 {[%clk 0:02:51]}  Nbc6 {[%clk 0:02:11]} 14. O-O {[%clk 0:02:50]}  Rxa4 {[%clk 0:02:07]} 15. c4 {[%clk 0:02:49]}  Ra8 {[%clk 0:02:00]} 16. Nxg6 {[%clk 0:02:47]}  hxg6 {[%clk 0:01:47]} 17. Rb1 {[%clk 0:02:39]}  Be5 {[%clk 0:01:36]} 18. cxd5 {[%clk 0:02:14]}  exd5 {[%clk 0:01:17]} 19. d4 {[%clk 0:02:00]}  cxd4 {[%clk 0:01:17]} 20. Nf3 {[%clk 0:02:00]}  Bd6 {[%clk 0:01:09]} 21. Nxd4 {[%clk 0:01:59]}  Bxa3 {[%clk 0:01:07]} 22. Bxa3 {[%clk 0:01:58]}  Rxa3 {[%clk 0:01:07]} 23. Rxb7 {[%clk 0:01:59]}  Ra7 {[%clk 0:00:43]} 24. Nxc6 {[%clk 0:01:56]}  Nxc6 {[%clk 0:00:43]} 25. Rxa7 {[%clk 0:01:52]}  Nxa7 {[%clk 0:00:44]} 26. Qxd5 {[%clk 0:01:49]}  Qxd5 {[%clk 0:00:43]} 27. Bxd5 {[%clk 0:01:50]}  Rd8 {[%clk 0:00:43]} 28. e4 {[%clk 0:01:43]}  Nb5 {[%clk 0:00:31]} 29. Rc1 {[%clk 0:01:43]}  g5 {[%clk 0:00:24]} 30. Rc5 {[%clk 0:01:37]}  Nd4 {[%clk 0:00:21]} 31. Rc7 {[%clk 0:01:37]}  Ne6 {[%clk 0:00:15]} 32. Bxe6 {[%clk 0:01:27]}  fxe6 {[%clk 0:00:16]} 33. Rc5 {[%clk 0:01:27]}  Rd4 {[%clk 0:00:12]} 34. f3 {[%clk 0:01:28]}  Rd2 {[%clk 0:00:11]} 35. Rxg5 {[%clk 0:01:27]}  Kf7 {[%clk 0:00:11]} 36. h4 {[%clk 0:01:27]}  Kf6 {[%clk 0:00:11]} 37. Ra5 {[%clk 0:01:24]}  Rb2 {[%clk 0:00:08]} 38. h5 {[%clk 0:01:17]}  e5 {[%clk 0:00:08]} 39. Kf1 {[%clk 0:01:11]}  Rh2 {[%clk 0:00:06]} 40. Ke1 {[%clk 0:01:04]}  Rb2 {[%clk 0:00:02]} 41. Rd5 {[%clk 0:01:03]}  Ra2 {[%clk 0:00:02]} 42. Rd2 {[%clk 0:01:02]}  Ra3 {[%clk 0:00:01]} 43. Kf2 {[%clk 0:01:03]}  Kg5 {[%clk 0:00:02]} 44. Rd7 {[%clk 0:01:02]}  g6 {[%clk 0:00:01]} 45. Rg7 {[%clk 0:00:52]}  Ra2+ {[%clk 0:00:01]} 46. Kg3 {[%clk 0:00:51]}  Rg2+ {[%clk 0:00:01]} 47. Kxg2 {[%clk 0:00:51]}  Kh4 {[%clk 0:00:02]} 48. f4 {[%clk 0:00:22]}  g5 {[%clk 0:00:02]} 49. fxg5 {[%clk 0:00:17]}  Kxg4 {[%clk 0:00:02]} 50. h6 {[%clk 0:00:18]}  Kf4 {[%clk 0:00:02]} 51. g6 {[%clk 0:00:18]}  Kg4 {[%clk 0:00:02]} 52. h7 {[%clk 0:00:17]}  Kg5 {[%clk 0:00:03]} 53. h8=R {[%clk 0:00:15]}  Kg4 {[%clk 0:00:04]} 54. Rf7 {[%clk 0:00:13]}  Kg5 {[%clk 0:00:05]} 55. g7 {[%clk 0:00:14]}  Kg4 {[%clk 0:00:06]} 56. Re8 {[%clk 0:00:13]}  Kg5 {[%clk 0:00:06]} 57. g8=R+ {[%clk 0:00:12]}  Kh4 {[%clk 0:00:06]} 58. Rg3 {[%clk 0:00:12]}  Kh5 {[%clk 0:00:06]} 59. Rxe5+ {[%clk 0:00:12]}  Kh6 {[%clk 0:00:06]} 60. Re8 {[%clk 0:00:13]}  Kh5 {[%clk 0:00:07]} 61. e5 {[%clk 0:00:13]}  Kh6 {[%clk 0:00:07]} 62. e6 {[%clk 0:00:14]}  Kh5 {[%clk 0:00:08]} 63. e7 {[%clk 0:00:15]}  Kh6 {[%clk 0:00:09]} 64. Reg8 {[%clk 0:00:15]}  Kh5 {[%clk 0:00:08]} 65. e8=R {[%clk 0:00:12]}  Kh6 {[%clk 0:00:09]} 66. Rd3 {[%clk 0:00:10]}  Kh5 {[%clk 0:00:07]} 67. Rd4 {[%clk 0:00:08]}  Kh6 {[%clk 0:00:07]} 68. Kf3 {[%clk 0:00:09]}  Kh5 {[%clk 0:00:08]} 69. Kg3 {[%clk 0:00:05]}  Kh6 {[%clk 0:00:09]} 70. Kh3 {[%clk 0:00:05]}  Kh5 {[%clk 0:00:10]} 71. Ree4 {[%clk 0:00:04]}  Kh6 {[%clk 0:00:10]} 72. Re6+ {[%clk 0:00:04]}  Kh5 {[%clk 0:00:11]} 73. Rd5# {[%clk 0:00:03]} 1-0


[Site "https://www.chess.com"]

[Event "Titled Tuesday Blitz November 14 Late 2023"]
[White "Eljanov, Pavel"]
[Black "Naroditsky, Daniel"]
[WhiteFideId "14102951"]
[BlackFideId "2026961"]
[WhiteElo "2881"]
[BlackElo "3102"]
[Result "0-1"]
[Round "4"]
[TimeControl "180+1"]
[Date "2023.11.14"]
[WhiteClock "0:00:12"]
[BlackClock "0:00:29"]
[Board "3"]

1. d4 {[%clk 0:03:00]}  Nf6 {[%clk 0:02:59]} 2. c4 {[%clk 0:03:00]}  g6 {[%clk 0:03:00]} 3. Nc3 {[%clk 0:03:00]}  Bg7 {[%clk 0:03:01]} 4. e4 {[%clk 0:02:59]}  d6 {[%clk 0:03:01]} 5. Be2 {[%clk 0:03:00]}  O-O {[%clk 0:03:02]} 6. Be3 {[%clk 0:03:00]}  Na6 {[%clk 0:03:00]} 7. Nf3 {[%clk 0:02:59]}  e5 {[%clk 0:03:01]} 8. d5 {[%clk 0:02:58]}  Ng4 {[%clk 0:02:52]} 9. Bg5 {[%clk 0:02:58]}  f6 {[%clk 0:02:50]} 10. Bh4 {[%clk 0:02:56]}  Qe8 {[%clk 0:02:37]} 11. h3 {[%clk 0:02:42]}  Nh6 {[%clk 0:02:37]} 12. g4 {[%clk 0:02:42]}  Nf7 {[%clk 0:02:34]} 13. a3 {[%clk 0:02:31]}  c5 {[%clk 0:02:34]} 14. Rb1 {[%clk 0:02:30]}  Bd7 {[%clk 0:02:31]} 15. b4 {[%clk 0:02:27]}  b6 {[%clk 0:02:31]} 16. Qc2 {[%clk 0:02:26]}  Qe7 {[%clk 0:02:30]} 17. Nd2 {[%clk 0:02:04]}  Bh6 {[%clk 0:02:27]} 18. Bg3 {[%clk 0:02:02]}  Bf4 {[%clk 0:02:09]} 19. h4 {[%clk 0:01:55]}  Kg7 {[%clk 0:02:06]} 20. Rg1 {[%clk 0:01:33]}  Nc7 {[%clk 0:02:01]} 21. Nf1 {[%clk 0:01:23]}  Kh8 {[%clk 0:01:41]} 22. Ne3 {[%clk 0:01:21]}  Nh6 {[%clk 0:01:36]} 23. Qd1 {[%clk 0:01:15]}  Rab8 {[%clk 0:01:27]} 24. Ng2 {[%clk 0:01:14]}  Bxg3 {[%clk 0:01:21]} 25. fxg3 {[%clk 0:01:15]}  f5 {[%clk 0:01:22]} 26. g5 {[%clk 0:01:09]}  Ng4 {[%clk 0:01:18]} 27. Rf1 {[%clk 0:01:03]}  Rf7 {[%clk 0:01:03]} 28. bxc5 {[%clk 0:01:03]}  Rbf8 {[%clk 0:00:56]} 29. c6 {[%clk 0:01:02]}  Bc8 {[%clk 0:00:57]} 30. Rb2 {[%clk 0:00:55]}  Nh2 {[%clk 0:00:53]} 31. Rh1 {[%clk 0:00:54]}  Ng4 {[%clk 0:00:44]} 32. a4 {[%clk 0:00:45]}  Na6 {[%clk 0:00:42]} 33. Rf1 {[%clk 0:00:35]}  Nh2 {[%clk 0:00:41]} 34. Rh1 {[%clk 0:00:35]}  Ng4 {[%clk 0:00:42]} 35. a5 {[%clk 0:00:33]}  Nc5 {[%clk 0:00:42]} 36. axb6 {[%clk 0:00:33]}  axb6 {[%clk 0:00:42]} 37. Rf1 {[%clk 0:00:30]}  fxe4 {[%clk 0:00:37]} 38. Qd2 {[%clk 0:00:16]}  Rf2 {[%clk 0:00:31]} 39. Bxg4 {[%clk 0:00:14]}  Rxf1+ {[%clk 0:00:29]} 40. Ke2 {[%clk 0:00:12]}  Bxg4+ {[%clk 0:00:29]} 0-1


[Site "https://www.chess.com"]

[Event "Titled Tuesday Blitz November 14 Late 2023"]
[White "Erigaisi Arjun"]
[Black "Zakhartsov, Vladimir"]
[WhiteFideId "35009192"]
[BlackFideId "4145097"]
[WhiteElo "3037"]
[BlackElo "2853"]
[Result "1-0"]
[Round "4"]
[TimeControl "180+1"]
[Date "2023.11.14"]
[WhiteClock "0:00:27"]
[BlackClock "0:00:01"]
[Board "6"]

1. c4 {[%clk 0:03:00]}  e6 {[%clk 0:02:58]} 2. Nf3 {[%clk 0:03:00]}  d5 {[%clk 0:02:58]} 3. e3 {[%clk 0:03:01]}  Nf6 {[%clk 0:02:57]} 4. b3 {[%clk 0:02:59]}  b6 {[%clk 0:02:57]} 5. Bb2 {[%clk 0:02:59]}  Bb7 {[%clk 0:02:57]} 6. Nc3 {[%clk 0:03:00]}  Nbd7 {[%clk 0:02:55]} 7. Rc1 {[%clk 0:02:56]}  a6 {[%clk 0:02:53]} 8. cxd5 {[%clk 0:02:56]}  exd5 {[%clk 0:02:54]} 9. Ne2 {[%clk 0:02:56]}  g6 {[%clk 0:02:29]} 10. h4 {[%clk 0:02:55]}  h5 {[%clk 0:02:29]} 11. Ng5 {[%clk 0:02:45]}  Bg7 {[%clk 0:02:28]} 12. Nf4 {[%clk 0:02:42]}  O-O {[%clk 0:02:24]} 13. Bd3 {[%clk 0:02:33]}  Nc5 {[%clk 0:01:55]} 14. Bb1 {[%clk 0:02:25]}  Nce4 {[%clk 0:01:46]} 15. Qc2 {[%clk 0:02:16]}  c5 {[%clk 0:01:43]} 16. d3 {[%clk 0:02:06]}  Nxg5 {[%clk 0:01:36]} 17. hxg5 {[%clk 0:02:07]}  Ng4 {[%clk 0:01:37]} 18. Bxg7 {[%clk 0:01:56]}  Kxg7 {[%clk 0:01:38]} 19. d4 {[%clk 0:01:48]}  Qxg5 {[%clk 0:01:12]} 20. Nxh5+ {[%clk 0:01:45]}  gxh5 {[%clk 0:00:51]} 21. Qh7+ {[%clk 0:01:44]}  Kf6 {[%clk 0:00:51]} 22. Rxh5 {[%clk 0:01:45]}  Qg8 {[%clk 0:00:51]} 23. Qf5+ {[%clk 0:01:12]}  Ke7 {[%clk 0:00:51]} 24. Rg5 {[%clk 0:01:10]}  Qh8 {[%clk 0:00:40]} 25. Qxg4 {[%clk 0:01:07]}  Rg8 {[%clk 0:00:35]} 26. Qf4 {[%clk 0:00:51]}  Rxg5 {[%clk 0:00:26]} 27. Qxg5+ {[%clk 0:00:52]}  f6 {[%clk 0:00:27]} 28. Qf4 {[%clk 0:00:52]}  Rc8 {[%clk 0:00:25]} 29. Bf5 {[%clk 0:00:51]}  Rc6 {[%clk 0:00:22]} 30. dxc5 {[%clk 0:00:47]}  bxc5 {[%clk 0:00:23]} 31. Kd2 {[%clk 0:00:46]}  Qd8 {[%clk 0:00:19]} 32. Rh1 {[%clk 0:00:45]}  Qa5+ {[%clk 0:00:18]} 33. Kd1 {[%clk 0:00:43]}  Qxa2 {[%clk 0:00:11]} 34. Rh7+ {[%clk 0:00:42]}  Kd8 {[%clk 0:00:11]} 35. Rxb7 {[%clk 0:00:27]}  Qa1+ {[%clk 0:00:05]} 36. Ke2 {[%clk 0:00:27]}  Qb2+ {[%clk 0:00:01]} 37. Kf3 {[%clk 0:00:27]} 1-0


[Site "https://www.chess.com"]

[Event "Titled Tuesday Blitz November 14 Late 2023"]
[White "Ivic, Velimir"]
[Black "Martinez Alcantara, Jose Eduardo"]
[WhiteFideId "950122"]
[BlackFideId "3805662"]
[WhiteElo "2823"]
[BlackElo "3021"]
[Result "0-1"]
[Round "4"]
[TimeControl "180+1"]
[Date "2023.11.14"]
[WhiteClock "0:02:06"]
[BlackClock "0:01:12"]
[Board "8"]

1. e4 {[%clk 0:03:00]}  c5 {[%clk 0:02:59]} 2. Nf3 {[%clk 0:03:01]}  d6 {[%clk 0:02:58]} 3. d4 {[%clk 0:03:01]}  cxd4 {[%clk 0:02:59]} 4. Nxd4 {[%clk 0:03:02]}  Nc6 {[%clk 0:03:00]} 5. c4 {[%clk 0:03:01]}  Nf6 {[%clk 0:02:57]} 6. Nc3 {[%clk 0:03:01]}  e6 {[%clk 0:02:57]} 7. Be2 {[%clk 0:02:59]}  Be7 {[%clk 0:02:57]} 8. Be3 {[%clk 0:02:59]}  O-O {[%clk 0:02:57]} 9. Qd2 {[%clk 0:02:57]}  Bd7 {[%clk 0:02:57]} 10. g4 {[%clk 0:02:52]}  Nxd4 {[%clk 0:02:51]} 11. Qxd4 {[%clk 0:02:51]}  Bc6 {[%clk 0:02:49]} 12. g5 {[%clk 0:02:49]}  Nd7 {[%clk 0:02:49]} 13. f4 {[%clk 0:02:49]}  e5 {[%clk 0:02:45]} 14. Qd2 {[%clk 0:02:50]}  exf4 {[%clk 0:02:44]} 15. Bxf4 {[%clk 0:02:50]}  Nc5 {[%clk 0:02:43]} 16. O-O-O {[%clk 0:02:39]}  Nxe4 {[%clk 0:02:39]} 17. Nxe4 {[%clk 0:02:39]}  Bxe4 {[%clk 0:02:40]} 18. Rhe1 {[%clk 0:02:40]}  d5 {[%clk 0:02:32]} 19. Bd3 {[%clk 0:02:37]}  Bxd3 {[%clk 0:02:29]} 20. Qxd3 {[%clk 0:02:37]}  Bxg5 {[%clk 0:02:29]} 21. Bxg5 {[%clk 0:02:36]}  Qxg5+ {[%clk 0:02:30]} 22. Kb1 {[%clk 0:02:36]}  dxc4 {[%clk 0:02:29]} 23. Qxc4 {[%clk 0:02:37]}  Rac8 {[%clk 0:02:24]} 24. Qb3 {[%clk 0:02:37]}  b6 {[%clk 0:02:24]} 25. Ka1 {[%clk 0:02:35]}  g6 {[%clk 0:02:20]} 26. a3 {[%clk 0:02:35]}  Rfd8 {[%clk 0:02:14]} 27. Rxd8+ {[%clk 0:02:29]}  Rxd8 {[%clk 0:02:14]} 28. Rf1 {[%clk 0:02:28]}  Qd5 {[%clk 0:02:12]} 29. Qe3 {[%clk 0:02:27]}  Qd3 {[%clk 0:02:05]} 30. Qf4 {[%clk 0:02:26]}  Qb3 {[%clk 0:02:02]} 31. Rc1 {[%clk 0:02:17]}  a5 {[%clk 0:01:46]} 32. Qc7 {[%clk 0:02:14]}  Re8 {[%clk 0:01:27]} 33. Qc6 {[%clk 0:02:12]}  Re2 {[%clk 0:01:16]} 34. Rb1 {[%clk 0:02:12]}  Qe6 {[%clk 0:01:13]} 35. Qa8+ {[%clk 0:02:12]}  Kg7 {[%clk 0:01:13]} 36. h4 {[%clk 0:02:06]}  Re1 {[%clk 0:01:12]} 0-1


[Site "https://www.chess.com"]

[Event "Titled Tuesday Blitz November 14 Late 2023"]
[White "Ibarra Jerez, Jose Carlos"]
[Black "Hafiz, Arif Abdul"]
[WhiteFideId "2226332"]
[BlackFideId "7104227"]
[WhiteElo "2967"]
[BlackElo "2815"]
[Result "1-0"]
[Round "4"]
[TimeControl "180+1"]
[Date "2023.11.14"]
[WhiteClock "0:00:23"]
[BlackClock "0:00:04"]
[Board "9"]

1. e4 {[%clk 0:02:59]}  e5 {[%clk 0:02:59]} 2. Nf3 {[%clk 0:02:55]}  Nc6 {[%clk 0:03:00]} 3. Nc3 {[%clk 0:02:54]}  Nf6 {[%clk 0:02:59]} 4. h3 {[%clk 0:02:54]}  Bb4 {[%clk 0:02:44]} 5. Nd5 {[%clk 0:02:48]}  Bc5 {[%clk 0:02:43]} 6. c3 {[%clk 0:02:43]}  Nxe4 {[%clk 0:02:27]} 7. d4 {[%clk 0:02:42]}  exd4 {[%clk 0:02:25]} 8. Bd3 {[%clk 0:02:43]}  Nf6 {[%clk 0:02:15]} 9. Nxf6+ {[%clk 0:02:42]}  Qxf6 {[%clk 0:02:13]} 10. O-O {[%clk 0:02:43]}  O-O {[%clk 0:02:03]} 11. Ng5 {[%clk 0:02:43]}  g6 {[%clk 0:01:51]} 12. Ne4 {[%clk 0:02:42]}  Qe5 {[%clk 0:01:34]} 13. Bh6 {[%clk 0:02:42]}  dxc3 {[%clk 0:01:28]} 14. bxc3 {[%clk 0:02:00]}  Re8 {[%clk 0:01:17]} 15. Qf3 {[%clk 0:01:56]}  f5 {[%clk 0:00:54]} 16. Bc4+ {[%clk 0:01:55]}  Kh8 {[%clk 0:00:49]} 17. Ng5 {[%clk 0:01:38]}  Nd8 {[%clk 0:00:40]} 18. Rae1 {[%clk 0:01:04]}  Qxe1 {[%clk 0:00:40]} 19. Rxe1 {[%clk 0:01:05]}  Rxe1+ {[%clk 0:00:40]} 20. Kh2 {[%clk 0:01:05]}  c6 {[%clk 0:00:41]} 21. Qf4 {[%clk 0:00:53]}  d5 {[%clk 0:00:23]} 22. Qc7 {[%clk 0:00:44]}  Be7 {[%clk 0:00:22]} 23. Bf8 {[%clk 0:00:24]}  dxc4 {[%clk 0:00:06]} 24. Bxe7 {[%clk 0:00:24]}  Ne6 {[%clk 0:00:04]} 25. Bf6+ {[%clk 0:00:23]} 1-0


[Site "https://www.chess.com"]

[Event "Titled Tuesday Blitz November 14 Late 2023"]
[White "Troff, Kayden"]
[Black "Bortnyk, Mykola"]
[WhiteFideId "2047896"]
[BlackFideId "14120836"]
[WhiteElo "2799"]
[BlackElo "2947"]
[Result "1-0"]
[Round "4"]
[TimeControl "180+1"]
[Date "2023.11.14"]
[WhiteClock "0:00:17"]
[BlackClock "0:00:08"]
[Board "12"]

1. d4 {[%clk 0:03:00]}  d5 {[%clk 0:02:58]} 2. Nf3 {[%clk 0:03:01]}  Nf6 {[%clk 0:02:59]} 3. Bf4 {[%clk 0:03:01]}  c5 {[%clk 0:02:59]} 4. e3 {[%clk 0:03:01]}  cxd4 {[%clk 0:02:59]} 5. Nxd4 {[%clk 0:02:58]}  Nc6 {[%clk 0:02:56]} 6. Nc3 {[%clk 0:02:54]}  a6 {[%clk 0:02:51]} 7. Be2 {[%clk 0:02:53]}  e6 {[%clk 0:02:48]} 8. O-O {[%clk 0:02:51]}  Bd6 {[%clk 0:02:49]} 9. Nxc6 {[%clk 0:02:44]}  bxc6 {[%clk 0:02:48]} 10. Bxd6 {[%clk 0:02:45]}  Qxd6 {[%clk 0:02:49]} 11. e4 {[%clk 0:02:45]}  Rb8 {[%clk 0:02:40]} 12. Re1 {[%clk 0:02:34]}  Rxb2 {[%clk 0:02:19]} 13. Bf3 {[%clk 0:02:09]}  Qb4 {[%clk 0:02:10]} 14. Qd3 {[%clk 0:01:54]}  d4 {[%clk 0:02:06]} 15. Ne2 {[%clk 0:01:48]}  e5 {[%clk 0:02:00]} 16. c3 {[%clk 0:01:23]}  dxc3 {[%clk 0:01:46]} 17. Qxc3 {[%clk 0:01:23]}  Qxc3 {[%clk 0:01:42]} 18. Nxc3 {[%clk 0:01:23]}  Be6 {[%clk 0:01:42]} 19. Rec1 {[%clk 0:01:21]}  Ke7 {[%clk 0:01:33]} 20. Na4 {[%clk 0:01:20]}  Rb4 {[%clk 0:01:34]} 21. Nc5 {[%clk 0:01:19]}  Bc8 {[%clk 0:01:22]} 22. Nd3 {[%clk 0:01:18]}  Rb5 {[%clk 0:01:19]} 23. Rxc6 {[%clk 0:01:18]}  Rd8 {[%clk 0:01:20]} 24. a4 {[%clk 0:01:02]}  Rb3 {[%clk 0:01:13]} 25. Nxe5 {[%clk 0:00:59]}  h6 {[%clk 0:00:55]} 26. Rac1 {[%clk 0:00:51]}  Bb7 {[%clk 0:00:43]} 27. Rc7+ {[%clk 0:00:50]}  Ke6 {[%clk 0:00:43]} 28. Nxf7 {[%clk 0:00:36]}  Rf8 {[%clk 0:00:41]} 29. Be2 {[%clk 0:00:31]}  Bxe4 {[%clk 0:00:29]} 30. Bc4+ {[%clk 0:00:31]}  Bd5 {[%clk 0:00:30]} 31. Re1+ {[%clk 0:00:26]}  Kf5 {[%clk 0:00:29]} 32. Nd6+ {[%clk 0:00:19]}  Kg6 {[%clk 0:00:26]} 33. Bxb3 {[%clk 0:00:19]}  Bxb3 {[%clk 0:00:27]} 34. h3 {[%clk 0:00:19]}  Rd8 {[%clk 0:00:26]} 35. Nb7 {[%clk 0:00:20]}  Rd4 {[%clk 0:00:20]} 36. Nc5 {[%clk 0:00:19]}  Bxa4 {[%clk 0:00:20]} 37. Rxg7+ {[%clk 0:00:15]}  Kxg7 {[%clk 0:00:20]} 38. Ne6+ {[%clk 0:00:16]}  Kf7 {[%clk 0:00:20]} 39. Nxd4 {[%clk 0:00:17]}  Bd7 {[%clk 0:00:20]} 40. Ra1 {[%clk 0:00:17]}  Bc8 {[%clk 0:00:21]} 41. Rc1 {[%clk 0:00:17]}  Bd7 {[%clk 0:00:17]} 42. Rc7 {[%clk 0:00:17]}  Ke8 {[%clk 0:00:16]} 43. Ra7 {[%clk 0:00:18]}  Bc8 {[%clk 0:00:16]} 44. g4 {[%clk 0:00:15]}  Nd5 {[%clk 0:00:16]} 45. Rh7 {[%clk 0:00:14]}  Bd7 {[%clk 0:00:11]} 46. Rh8+ {[%clk 0:00:14]}  Ke7 {[%clk 0:00:11]} 47. Rh7+ {[%clk 0:00:15]}  Kd8 {[%clk 0:00:11]} 48. Rxh6 {[%clk 0:00:15]}  Nc7 {[%clk 0:00:10]} 49. g5 {[%clk 0:00:14]}  a5 {[%clk 0:00:10]} 50. g6 {[%clk 0:00:15]}  Ne8 {[%clk 0:00:09]} 51. Rh8 {[%clk 0:00:14]}  Ke7 {[%clk 0:00:09]} 52. Rh7+ {[%clk 0:00:15]}  Kd6 {[%clk 0:00:09]} 53. g7 {[%clk 0:00:15]}  Nxg7 {[%clk 0:00:09]} 54. Rxg7 {[%clk 0:00:15]}  a4 {[%clk 0:00:10]} 55. h4 {[%clk 0:00:15]}  a3 {[%clk 0:00:10]} 56. Nc2 {[%clk 0:00:15]}  Bf5 {[%clk 0:00:10]} 57. Na1 {[%clk 0:00:15]}  a2 {[%clk 0:00:10]} 58. h5 {[%clk 0:00:16]}  Ke6 {[%clk 0:00:10]} 59. h6 {[%clk 0:00:16]}  Kf6 {[%clk 0:00:11]} 60. Rg8 {[%clk 0:00:16]}  Kf7 {[%clk 0:00:09]} 61. Rg3 {[%clk 0:00:17]}  Bb1 {[%clk 0:00:09]} 62. Kh2 {[%clk 0:00:16]}  Kf6 {[%clk 0:00:10]} 63. Kg1 {[%clk 0:00:16]}  Kf7 {[%clk 0:00:10]} 64. Kf1 {[%clk 0:00:17]}  Kf6 {[%clk 0:00:08]} 65. Ke1 {[%clk 0:00:17]} 1-0


[Site "https://www.chess.com"]

[Event "Titled Tuesday Blitz November 14 Late 2023"]
[White "Grischuk, Alexander"]
[Black "Djordjevic, Vuk"]
[WhiteFideId "4126025"]
[BlackFideId "902098"]
[WhiteElo "2939"]
[BlackElo "2760"]
[Result "1-0"]
[Round "4"]
[TimeControl "180+1"]
[Date "2023.11.14"]
[WhiteClock "0:00:08"]
[BlackClock "0:00:00"]
[Board "13"]

1. d4 {[%clk 0:03:00]}  Nf6 {[%clk 0:02:59]} 2. c4 {[%clk 0:03:01]}  e6 {[%clk 0:03:00]} 3. Bg5 {[%clk 0:03:00]}  d5 {[%clk 0:02:50]} 4. e3 {[%clk 0:02:59]}  c6 {[%clk 0:02:47]} 5. Nc3 {[%clk 0:02:57]}  Bb4 {[%clk 0:02:45]} 6. Qc2 {[%clk 0:02:53]}  Nbd7 {[%clk 0:02:44]} 7. Nf3 {[%clk 0:02:43]}  Qa5 {[%clk 0:02:43]} 8. Nd2 {[%clk 0:02:18]}  c5 {[%clk 0:02:33]} 9. dxc5 {[%clk 0:02:13]}  dxc4 {[%clk 0:02:29]} 10. Bxc4 {[%clk 0:01:53]}  Bxc3 {[%clk 0:02:14]} 11. bxc3 {[%clk 0:01:49]}  Qxc5 {[%clk 0:01:59]} 12. Bh4 {[%clk 0:01:45]}  b5 {[%clk 0:01:57]} 13. Be2 {[%clk 0:01:42]}  Bb7 {[%clk 0:01:56]} 14. O-O {[%clk 0:01:42]}  Rc8 {[%clk 0:01:25]} 15. Rfc1 {[%clk 0:01:41]}  O-O {[%clk 0:01:18]} 16. Qb2 {[%clk 0:01:39]}  Bc6 {[%clk 0:01:09]} 17. c4 {[%clk 0:01:35]}  b4 {[%clk 0:01:00]} 18. Nb3 {[%clk 0:01:24]}  Qe5 {[%clk 0:00:28]} 19. Nd4 {[%clk 0:01:12]}  a5 {[%clk 0:00:27]} 20. a3 {[%clk 0:01:03]}  Qe4 {[%clk 0:00:20]} 21. Bf3 {[%clk 0:01:03]}  Qxh4 {[%clk 0:00:20]} 22. Nxc6 {[%clk 0:01:03]}  Rc7 {[%clk 0:00:14]} 23. axb4 {[%clk 0:01:01]}  axb4 {[%clk 0:00:15]} 24. g3 {[%clk 0:00:50]}  Qg5 {[%clk 0:00:13]} 25. Qxb4 {[%clk 0:00:44]}  Qc5 {[%clk 0:00:09]} 26. Rab1 {[%clk 0:00:33]}  Qxb4 {[%clk 0:00:07]} 27. Rxb4 {[%clk 0:00:33]}  Nc5 {[%clk 0:00:07]} 28. Rb5 {[%clk 0:00:33]}  Ncd7 {[%clk 0:00:04]} 29. c5 {[%clk 0:00:29]}  g6 {[%clk 0:00:02]} 30. Nb4 {[%clk 0:00:25]}  Kg7 {[%clk 0:00:03]} 31. c6 {[%clk 0:00:25]}  Nb8 {[%clk 0:00:02]} 32. Ra1 {[%clk 0:00:17]}  Rfc8 {[%clk 0:00:01]} 33. Ra8 {[%clk 0:00:16]}  Nxc6 {[%clk 0:00:02]} 34. Rxc8 {[%clk 0:00:16]}  Rxc8 {[%clk 0:00:01]} 35. Nxc6 {[%clk 0:00:16]}  Rc7 {[%clk 0:00:01]} 36. Kg2 {[%clk 0:00:16]}  Rd7 {[%clk 0:00:01]} 37. Ne5 {[%clk 0:00:15]}  Re7 {[%clk 0:00:01]} 38. Rb7 {[%clk 0:00:15]}  Rxb7 {[%clk 0:00:02]} 39. Bxb7 {[%clk 0:00:15]}  Ne8 {[%clk 0:00:03]} 40. f4 {[%clk 0:00:15]}  Nd6 {[%clk 0:00:03]} 41. Bc6 {[%clk 0:00:15]}  h6 {[%clk 0:00:04]} 42. Kf3 {[%clk 0:00:15]}  h5 {[%clk 0:00:04]} 43. Ba4 {[%clk 0:00:10]}  Kf6 {[%clk 0:00:05]} 44. Bb3 {[%clk 0:00:10]}  Nf5 {[%clk 0:00:04]} 45. Nc6 {[%clk 0:00:08]}  Nd6 {[%clk 0:00:04]} 46. e4 {[%clk 0:00:08]}  Kg7 {[%clk 0:00:04]} 47. e5 {[%clk 0:00:08]}  Nb5 {[%clk 0:00:03]} 48. Bc4 {[%clk 0:00:08]}  Nc7 {[%clk 0:00:03]} 49. Ke4 {[%clk 0:00:08]}  Kf8 {[%clk 0:00:03]} 50. Kd4 {[%clk 0:00:08]}  Ne8 {[%clk 0:00:04]} 51. Kc5 {[%clk 0:00:07]}  Ng7 {[%clk 0:00:04]} 52. Nd4 {[%clk 0:00:07]}  Ke7 {[%clk 0:00:04]} 53. Kc6 {[%clk 0:00:06]}  Ne8 {[%clk 0:00:03]} 54. Bd3 {[%clk 0:00:06]}  Ng7 {[%clk 0:00:03]} 55. Be4 {[%clk 0:00:06]}  Ne8 {[%clk 0:00:03]} 56. Kc5 {[%clk 0:00:07]}  Ng7 {[%clk 0:00:03]} 57. Kc4 {[%clk 0:00:07]}  Ne8 {[%clk 0:00:03]} 58. Kd3 {[%clk 0:00:07]}  Ng7 {[%clk 0:00:02]} 59. Ke3 {[%clk 0:00:07]}  Ne8 {[%clk 0:00:03]} 60. Kf3 {[%clk 0:00:08]}  Kf8 {[%clk 0:00:02]} 61. Bc6 {[%clk 0:00:07]}  Ng7 {[%clk 0:00:02]} 62. Bb5 {[%clk 0:00:07]}  Ke7 {[%clk 0:00:02]} 63. Bd3 {[%clk 0:00:07]}  Kf8 {[%clk 0:00:03]} 64. Ke2 {[%clk 0:00:07]}  Ke7 {[%clk 0:00:03]} 65. Nf3 {[%clk 0:00:07]}  Ne8 {[%clk 0:00:03]} 66. Ng5 {[%clk 0:00:08]}  Nc7 {[%clk 0:00:04]} 67. Bc4 {[%clk 0:00:08]}  Kf8 {[%clk 0:00:03]} 68. Ke3 {[%clk 0:00:08]}  Ke7 {[%clk 0:00:04]} 69. Kd4 {[%clk 0:00:09]}  Ne8 {[%clk 0:00:04]} 70. Kc5 {[%clk 0:00:09]}  Ng7 {[%clk 0:00:05]} 71. Bd3 {[%clk 0:00:10]}  Ne8 {[%clk 0:00:05]} 72. Ne4 {[%clk 0:00:09]}  Ng7 {[%clk 0:00:01]} 73. Nd6 {[%clk 0:00:09]}  h4 {[%clk 0:00:01]} 74. g4 {[%clk 0:00:09]}  h3 {[%clk 0:00:00]} 75. Kd4 {[%clk 0:00:08]} 1-0


[Site "https://www.chess.com"]